bitfinex/quotes_ETHUSD_20250519
["timestamp","ask_amount","ask_price","bid_price","bid_amount"]
[1747662141623,11.499,2428.9,2428.2,4.11827691]
[1747662141824,11.527,2429.3,2428.2,0.99277746]
[1747662142135,17.759,2429.4,2429.2,4.11658159]
[1747662142450,0.05146284,2429.3,2428.3,1.6409]
[1747662142650,21.87535779,2429.4,2428.9,4.11699753]
[1747662143331,0.55,2429.3,2428.8,4.11717874]
[1747662143533,0.05146892,2429.3,2428.3,1.6409]
[1747662143735,7.30473117,2429.0,2428.3,1.6409]
[1747662143952,7.30473117,2429.0,2428.1,0.05]
[1747662143953,7.30473117,2428.6,2428.1,0.05]
[1747662144127,11.97300808,2428.2,2428.1,0.05]
[1747662144458,23.50100808,2428.2,2428.1,0.05]
[1747662144823,24.54260808,2428.2,2428.1,0.05]
[1747662145264,16.19627691,2428.2,2428.1,0.05]
[1747662146796,20.51927691,2428.2,2428.1,0.05]
[1747662147089,16.19627691,2428.2,2428.1,0.05]
[1747662147482,12.078,2428.2,2428.1,0.05]
[1747662148349,16.19627691,2428.2,2428.1,0.05]
[1747662150179,0.55,2427.2,2427.1,0.05]
[1747662150692,7.30473117,2427.6,2427.1,0.05]
[1747662150693,0.55,2427.6,2427.1,0.05]
[1747662150914,4.11949183,2427.5,2427.1,0.05]
[1747662151098,4.11954155,2427.5,2427.1,0.05]
[1747662151412,4.66914292,2427.7,2427.1,0.05]
[1747662151583,0.55,2427.2,2427.1,0.05]
[1747662151786,11.532,2427.7,2427.1,0.05]
[1747662151986,11.532,2427.7,2427.3,4.11972983]
[1747662152306,4.11960221,2427.5,2427.1,0.05]
[1747662152508,0.55,2427.4,2427.1,0.05]
[1747662152809,4.11987913,2427.3,2427.1,0.05]
[1747662153014,4.66997363,2427.2,2427.1,0.05]
[1747662153412,4.72148736,2427.2,2427.1,0.05]
[1747662153627,16.00697363,2427.2,2427.1,0.05]
[1747662154728,12.084,2427.2,2427.1,0.05]
[1747662154901,11.534,2427.2,2427.1,0.05]
[1747662155222,11.534,2427.2,2427.1,4.17014338]
[1747662155389,4.11861614,2428.0,2427.1,1.5855]
[1747662155594,4.11891434,2427.9,2427.2,4.11997363]
[1747662155789,0.55,2427.7,2427.1,1.5855]
[1747662155999,0.55,2427.5,2427.1,1.5855]
[1747662156206,4.66903508,2427.8,2427.3,4.11977673]
[1747662156384,11.3,2427.8,2427.1,1.5855]
[1747662156585,11.3,2427.8,2427.4,4.11954259]
[1747662156785,11.3,2427.8,2427.5,4.11946196]
[1747662157015,15.65262332,2428.0,2427.5,4.11931286]
[1747662157227,0.05149706,2427.9,2427.1,1.5855]
[1747662157399,4.11940878,2427.6,2427.1,5.70563941]
[1747662157717,4.11742907,2428.7,2427.2,11.276]
[1747662157918,11.536,2428.8,2428.2,4.11820064]
[1747662158216,11.536,2428.8,2428.2,4.11818046]
[1747662158395,11.536,2429.3,2428.5,4.11762583]
[1747662158599,12.3096,2429.7,2428.5,0.41176258]
[1747662158784,11.536,2429.8,2429.0,4.11692054]
[1747662159121,4.11628342,2429.4,2428.9,5.78110851]
[1747662159317,4.11615956,2429.5,2428.9,1.6641]
[1747662159621,15.6516202,2429.8,2429.3,4.11636805]
[1747662159779,11.536,2429.8,2428.9,1.6641]
[1747662159978,11.536,2429.8,2429.0,0.1330518]
[1747662160224,15.65164118,2429.8,2429.2,4.11657417]
[1747662160393,15.65164118,2429.8,2429.3,4.11638059]
[1747662160593,0.05,2429.9,2429.8,4.11556506]
[1747662160814,0.05,2429.9,2429.6,11.278]
[1747662161023,4.11641213,2429.3,2429.0,0.1330518]
[1747662161224,11.42050824,2429.7,2429.0,0.1330518]
[1747662161403,4.66590385,2429.6,2429.0,0.1330518]
[1747662161606,4.66675106,2429.1,2429.0,0.1330518]
[1747662161801,4.71822291,2429.1,2429.0,0.1330518]
[1747662161998,5.75982291,2429.1,2429.0,0.1330518]
[1747662162206,5.70835106,2429.1,2429.0,0.1330518]
[1747662162639,4.11759861,2428.6,2428.5,0.1330518]
[1747662162820,4.66759861,2428.6,2428.5,0.1330518]
[1747662163025,4.11722565,2428.9,2428.5,0.1330518]
[1747662163339,4.1174582,2428.7,2428.5,0.1330518]
[1747662163529,4.71907859,2428.6,2428.5,0.1330518]
[1747662164114,1.0416,2429.1,2428.5,0.1330518]
[1747662164115,4.11737106,2428.8,2428.5,0.1330518]
[1747662164323,4.66753532,2428.7,2428.5,0.1330518]
[1747662164626,4.66759861,2428.6,2428.5,0.1330518]
[1747662165019,4.1173538,2428.8,2428.5,0.1330518]
[1747662165212,8.34633117,2429.5,2428.5,4.25073094]
[1747662165543,4.11650347,2429.3,2428.6,4.11752178]
[1747662165840,8.34633117,2429.5,2428.7,0.12860817]
[1747662165841,0.30726342,2429.4,2428.7,0.12860817]
[1747662166055,4.66682845,2429.1,2428.7,0.12860817]
[1747662166227,11.348,2429.6,2428.7,0.12860817]
[1747662166428,15.46400127,2429.6,2428.9,4.11698496]
[1747662166629,4.11607922,2429.5,2428.9,4.11698496]
[1747662166861,4.11607922,2429.5,2429.0,0.12860817]
[1747662167155,4.11653414,2429.3,2429.0,0.12860817]
[1747662167350,4.66675106,2429.1,2429.0,0.12860817]
[1747662167548,4.66684025,2429.1,2428.6,11.248]
[1747662167749,0.55,2429.3,2428.7,4.46828061]
[1747662168063,11.348,2429.6,2429.0,0.1330518]
[1747662168229,4.66675106,2429.1,2429.0,0.1330518]
[1747662168749,13.01308223,2429.1,2429.0,0.1330518]
[1747662168951,13.01308223,2429.1,2427.9,1.5356]
[1747662168952,4.11854942,2428.1,2427.9,1.5356]
[1747662169141,4.11829946,2428.2,2427.9,1.5356]
[1747662169463,4.11829946,2428.2,2428.0,0.12864374]
[1747662169647,11.347,2428.6,2428.0,4.24723591]
[1747662169850,0.55,2429.0,2428.0,11.83434308]
[1747662170051,0.55,2429.0,2428.3,4.11810731]
[1747662170359,4.11692099,2429.0,2428.4,4.11792064]
[1747662170535,4.11698247,2429.0,2428.4,4.24654478]
[1747662170736,8.34633117,2429.5,2428.5,0.12861373]
[1747662170940,4.11682587,2429.1,2428.5,4.24630953]
[1747662171147,4.11682587,2429.1,2428.6,0.12861373]
[1747662171342,4.11711837,2428.9,2428.7,0.12861373]
[1747662171551,11.347,2429.4,2428.2,5.74156491]
[1747662171853,11.347,2429.4,2428.4,1.6106]
[1747662172055,4.11675036,2429.2,2428.6,4.11756815]
[1747662172243,15.46333606,2429.4,2428.8,4.11714226]
[1747662172444,4.11643073,2429.3,2428.9,0.12860403]
[1747662172666,0.05146837,2429.2,2428.5,11.18]
[1747662173050,4.16813107,2429.2,2428.6,0.35118672]
[1747662173372,4.66641052,2429.4,2428.8,4.11718277]
[1747662173534,4.66641052,2429.4,2428.7,0.1286006]
[1747662173535,0.55,2429.4,2428.7,4.24601592]
[1747662173876,4.11625749,2429.4,2428.9,4.11706369]
[1747662174075,4.11675106,2429.1,2429.0,0.1286006]
[1747662174246,4.66675106,2429.1,2429.0,0.1286006]
[1747662174445,4.1171349,2428.9,2428.4,1.6106]
[1747662174660,4.11731327,2428.8,2428.4,1.6106]
[1747662174960,0.60147672,2428.7,2428.1,1.5259]
[1747662175139,0.55,2428.9,2428.1,1.5259]
[1747662175340,0.55,2428.9,2427.7,15.46599474]
[1747662175341,0.55,2428.9,2427.7,1.5497]
[1747662175635,0.55,2428.5,2427.8,0.35154181]
[1747662175833,4.11796485,2428.4,2427.9,0.12865402]
[1747662176068,0.55,2428.5,2427.6,4.1191557]
[1747662176276,0.55,2428.5,2427.2,1.5791]
[1747662176477,0.55,2428.5,2427.7,0.12865237]
[1747662176674,4.11842994,2428.2,2427.5,4.11938779]
[1747662176861,4.11861317,2428.1,2427.6,4.24794222]
[1747662177206,11.103,2428.6,2427.6,0.35161565]
[1747662177380,4.66785002,2428.5,2427.9,4.1187059]
[1747662177554,0.55,2428.7,2428.1,4.11843004]
[1747662177738,29.126,2428.8,2428.3,4.11801853]
[1747662177943,12.3886,2429.4,2428.0,11.072]
[1747662178282,12.3886,2429.4,2428.6,1.6633]
[1747662178283,4.11675612,2429.1,2428.6,1.6633]
[1747662178439,4.16822707,2429.1,2428.6,1.6633]
[1747662178643,0.05147095,2429.1,2428.6,1.6633]
[1747662178946,11.347,2429.4,2428.8,4.11714774]
[1747662178947,15.46333388,2429.4,2428.8,4.11714774]
[1747662179253,4.11648744,2429.3,2428.7,4.11732729]
[1747662179454,4.1679548,2429.3,2428.7,4.11732729]
[1747662179659,4.11664409,2429.2,2428.8,0.12860079]
[1747662180101,11.347,2429.4,2428.9,4.11694074]
[1747662180382,0.05,2429.9,2429.6,4.11582384]
[1747662180569,0.05,2429.9,2429.8,4.11556506]
[1747662180745,0.05,2429.9,2429.7,5.88088148]
[1747662180961,4.11556506,2429.8,2428.9,1.6366]
[1747662181280,4.11556506,2429.8,2429.0,0.35104481]
[1747662181281,4.11667069,2429.2,2429.0,0.35104481]
[1747662181467,4.11675106,2429.1,2429.0,0.35104481]
[1747662181879,0.05146661,2429.4,2428.6,4.11753761]
[1747662182175,9.99,2429.5,2428.8,4.11725955]
[1747662182396,15.13198113,2429.6,2429.0,4.11683763]
[1747662182397,25.1219195,2429.6,2429.0,4.11683763]
[1747662182561,14.1059195,2429.6,2429.0,4.11683763]
[1747662182760,14.10598746,2429.6,2429.0,4.11692054]
[1747662182955,14.10598746,2429.6,2429.1,4.11661646]
[1747662182956,14.10591394,2429.6,2429.1,4.11661646]
[1747662183200,9.99,2429.6,2429.1,1.5922]
[1747662183412,11.02,2429.8,2429.1,5.70889087]
[1747662183578,0.05,2429.9,2429.5,4.11597176]
[1747662183781,0.05,2429.9,2429.4,4.11610117]
[1747662184002,0.05,2429.9,2429.5,4.11596126]
[1747662184208,0.10145089,2429.9,2429.1,1.5922]
[1747662184409,4.11582498,2429.7,2429.1,5.70887033]
[1747662184567,4.11577087,2429.7,2429.2,4.24505735]
[1747662184763,0.55,2429.8,2429.3,0.12857174]
[1747662185007,0.05,2429.9,2429.3,4.1163881]
[1747662185214,0.05,2429.9,2429.8,4.11556506]
[1747662185702,4.16539569,2429.9,2429.8,1.73467174]
[1747662185909,4.16539569,2429.9,2429.8,0.12857174]
[1747662186309,0.05,2429.9,2429.8,0.12857174]
[1747662186610,0.05,2429.9,2429.8,4.2441368]
[1747662186908,0.05,2429.9,2429.8,0.12857174]
[1747662187202,4.16539569,2429.9,2429.8,0.35164026]
[1747662187510,0.05,2429.9,2429.8,0.35164026]
[1747662187718,0.05,2429.9,2429.4,1.552]
[1747662187897,0.05,2429.9,2429.8,4.11556506]
[1747662188099,0.05,2429.9,2429.4,1.552]
[1747662188287,0.10145391,2429.9,2429.4,1.552]
[1747662188491,0.05,2429.9,2429.4,1.552]
[1747662188692,0.05,2429.9,2429.8,4.11556506]
[1747662188898,0.05,2429.9,2429.7,4.1156363]
[1747662189095,0.05,2429.9,2429.5,10.924]
[1747662189305,0.05,2429.9,2429.8,8.80681818]
[1747662189699,4.16539569,2429.9,2429.8,8.80681818]
[1747662190218,0.6,2429.9,2429.8,8.80681818]
[1747662190510,0.05,2429.9,2429.8,8.80681818]
[1747662190711,0.05,2429.9,2429.8,12.92238324]
[1747662192117,0.05,2429.9,2429.8,17.23679133]
[1747662192416,0.05,2429.9,2429.8,25.23679133]
[1747662192617,0.05,2430.9,2430.7,4.11396764]
[1747662193019,0.05,2430.9,2430.4,14.96248077]
[1747662193183,0.05,2430.9,2430.0,5.73250938]
[1747662193184,0.05,2430.9,2430.0,5.73257078]
[1747662193381,4.66411688,2430.7,2430.0,5.73259041]
[1747662193618,9.29356577,2430.8,2430.1,4.11500137]
[1747662193803,4.11405955,2430.7,2430.2,4.11487421]
[1747662194023,4.11422206,2430.6,2430.0,1.6174]
[1747662194235,4.11422206,2430.6,2430.1,4.1150501]
[1747662194527,4.66413765,2430.7,2430.0,5.73254483]
[1747662194698,0.55,2430.7,2430.1,4.11488804]
[1747662195035,4.11417997,2430.7,2430.0,1.6174]
[1747662195241,4.11404352,2430.7,2430.1,4.11492021]
[1747662195528,0.55,2430.4,2429.8,8.80681818]
[1747662195850,4.11514227,2430.1,2429.8,8.80681818]
[1747662196048,4.66539569,2429.9,2429.8,8.80681818]
[1747662196259,4.71684619,2429.9,2429.8,8.80681818]
[1747662196459,4.66539569,2429.9,2429.8,8.80681818]
[1747662196673,5.75699569,2429.9,2429.8,8.80681818]
[1747662197113,1.0916,2430.5,2429.8,14.5069284]
[1747662197314,5.25531058,2430.9,2429.9,4.11530599]
[1747662197630,4.11447332,2430.5,2429.8,8.80681818]
[1747662197831,7.29023806,2430.8,2429.8,8.80681818]
[1747662198019,4.11425257,2430.6,2430.0,4.11507458]
[1747662198359,5.25536265,2430.9,2429.8,8.80681818]
[1747662198514,0.05,2430.9,2430.0,1.664]
[1747662198714,0.05,2430.9,2430.8,4.11387197]
[1747662198931,0.05,2430.9,2430.8,1.664]
[1747662199130,0.05,2430.9,2430.8,0.12848306]
[1747662199330,0.05,2430.9,2430.5,1.6285]
[1747662199547,0.05,2430.9,2430.7,4.11401588]
[1747662199756,0.05,2430.9,2430.8,4.11387197]
[1747662199954,0.05,2430.9,2430.8,6.02555825]
[1747662200289,0.05,2430.9,2430.8,1.91168628]
[1747662200592,4.16370274,2430.9,2430.8,0.22250743]
[1747662200878,4.16370274,2430.9,2430.1,4.11503273]
[1747662200879,0.05,2430.9,2430.1,4.11505448]
[1747662201047,4.1144324,2430.5,2430.0,1.6057]
[1747662201249,0.55,2430.6,2430.0,1.6057]
[1747662201445,4.66433215,2430.6,2430.0,5.72084364]
[1747662201666,11.013,2430.7,2430.3,4.1145534]
[1747662201972,0.05,2430.9,2430.5,4.11427425]
[1747662202169,0.05,2430.9,2430.4,4.11446276]
[1747662202769,4.16372569,2430.9,2430.3,4.11463043]
[1747662202938,4.11398739,2430.8,2430.0,3.47000569]
[1747662203140,0.05142973,2430.7,2430.1,0.22284459]
[1747662203335,4.11455989,2430.4,2430.0,1.6057]
[1747662203543,4.11445125,2430.5,2430.0,5.72090582]
[1747662203735,4.11440002,2430.5,2430.0,1.6057]
[1747662203935,4.11437975,2430.5,2430.0,1.6057]
[1747662204233,15.67727079,2430.6,2430.0,5.72083528]
[1747662204427,4.11455876,2430.4,2430.0,1.6057]
[1747662204633,4.11437975,2430.5,2430.0,1.6057]
[1747662204852,4.11523088,2430.0,2429.8,8.80681818]
[1747662205057,4.11507449,2430.1,2429.8,8.80681818]
[1747662205258,4.11529709,2430.0,2429.8,8.80681818]
[1747662205496,7.29023806,2430.5,2429.8,8.80681818]
[1747662205654,4.11484766,2430.3,2429.8,8.80681818]
[1747662205981,4.11539569,2429.9,2429.8,8.80681818]
[1747662206262,4.66539569,2429.9,2429.8,8.80681818]
[1747662206462,5.75699569,2429.9,2429.8,8.80681818]
[1747662207183,1.0916,2430.3,2429.8,12.92224635]
[1747662207387,4.11362973,2431.0,2429.8,12.92224635]
[1747662207388,1.0916,2430.8,2429.9,4.15655183]
[1747662207585,0.05,2430.9,2430.4,4.11440334]
[1747662207939,0.05,2430.9,2430.2,10.835]
[1747662208142,4.11412768,2430.7,2430.2,10.835]
[1747662208886,0.55,2430.8,2430.2,10.835]
[1747662209204,0.55,2430.8,2429.8,10.36851818]
[1747662209205,0.60143619,2430.8,2429.8,10.36851818]
[1747662209337,4.11498995,2430.2,2429.8,21.20351818]
[1747662209532,4.1148091,2430.3,2429.8,25.31907868]
[1747662209962,4.1148091,2430.3,2429.8,21.20351818]
[1747662210156,11.013,2430.6,2429.8,21.20351818]
[1747662210359,11.013,2430.6,2429.8,24.14701528]
[1747662210873,11.013,2430.6,2430.4,4.11454136]
[1747662211052,11.013,2430.6,2430.3,4.11470309]
[1747662211249,0.05,2430.9,2429.8,24.14701528]
[1747662211571,0.05,2430.9,2430.8,5.64757197]
[1747662211782,0.05,2430.9,2430.8,16.48157197]
[1747662212442,0.05,2430.9,2430.4,1.5712]
[1747662212642,4.11387198,2430.8,2430.4,1.5712]
[1747662212846,4.11395101,2430.8,2430.2,4.11479878]
[1747662213052,4.11395101,2430.8,2430.1,10.833]
[1747662213053,0.05,2430.9,2430.3,4.11462642]
[1747662213376,4.11475607,2430.3,2430.0,1.5508]
[1747662213559,0.55,2430.6,2430.0,1.5508]
[1747662213758,0.05,2430.9,2430.2,4.11483133]
[1747662213953,4.16378431,2430.9,2430.3,4.11464263]
[1747662214277,4.16379853,2430.9,2430.3,4.11455905]
[1747662214441,4.11389062,2430.8,2430.3,4.11455905]
[1747662214851,4.11397076,2430.8,2430.3,4.11470233]
[1747662215045,4.16378539,2430.9,2430.0,1.5508]
[1747662215278,0.05,2430.9,2430.2,4.11488766]
[1747662215447,0.05,2430.9,2430.2,10.831]
[1747662215644,0.05,2430.9,2430.7,4.11395142]
[1747662216088,0.05,2430.9,2430.8,5.65107197]
[1747662216388,0.05,2430.9,2430.8,16.48207197]
[1747662216572,0.05,2430.9,2430.8,18.54167431]
[1747662218496,0.05,2430.9,2430.8,24.48207197]
[1747662219253,0.05,2430.9,2430.8,16.47907197]
[1747662220710,0.05,2431.9,2430.8,16.47907197]
[1747662220711,0.05,2431.9,2431.8,4.11218027]
[1747662221022,0.05,2431.9,2431.6,1.5369]
[1747662221156,4.16205826,2431.9,2431.5,10.828]
[1747662221356,0.05,2431.9,2431.3,4.11301259]
[1747662221554,4.16208996,2431.9,2431.4,4.11283014]
[1747662221787,0.05,2431.9,2431.2,1.5369]
[1747662221992,0.05,2431.9,2431.6,4.11240792]
[1747662222161,0.05,2431.9,2431.7,4.11233458]
[1747662222364,0.05,2431.9,2431.3,1.23639]
[1747662222564,0.05,2431.9,2431.7,4.11234701]
[1747662222793,0.05,2431.9,2431.3,1.23639]
[1747662222963,0.05,2431.9,2431.6,4.11245984]
[1747662223165,0.05,2431.9,2431.4,4.11271731]
[1747662223361,0.05,2431.9,2431.3,1.23639]
[1747662223591,0.05,2431.9,2431.8,4.11218027]
[1747662223994,0.05,2431.9,2431.7,4.11223495]
[1747662224301,0.05,2431.9,2431.8,4.11218027]
[1747662224799,0.05,2431.9,2431.8,4.24061572]
[1747662225467,0.05,2431.9,2431.8,0.12843545]
[1747662225666,14.99101118,2431.9,2431.8,0.12843545]
[1747662225901,19.85434991,2431.9,2430.8,1.5911]
[1747662226065,4.11315194,2431.3,2430.8,5.70494015]
[1747662226265,4.11315194,2431.3,2430.4,1.5726]
[1747662226266,4.11432038,2430.6,2430.4,1.5726]
[1747662226477,0.05142977,2430.5,2430.0,1.5726]
[1747662226766,0.55,2431.0,2430.1,0.12852838]
[1747662226966,0.55,2431.0,2430.0,2.65460131]
[1747662227299,4.11397521,2430.8,2430.2,4.11472916]
[1747662227501,4.11397521,2430.8,2430.3,4.11468079]
[1747662227800,4.11370274,2430.9,2430.0,2.65460131]
[1747662227801,0.0514315,2430.9,2430.0,1.5726]
[1747662227984,0.55,2430.6,2429.8,9.24741308]
[1747662228160,0.05143997,2430.5,2429.8,10.32888439]
[1747662228363,0.55,2430.6,2429.9,4.24391681]
[1747662228564,4.11434931,2430.6,2430.0,4.24362926]
[1747662228789,0.55,2430.9,2429.9,4.11532483]
[1747662228995,0.55,2430.9,2429.8,9.88828949]
[1747662228996,4.11445646,2430.5,2429.8,9.88828949]
[1747662229165,0.55,2430.7,2429.9,0.98882895]
[1747662229166,4.11418257,2430.7,2429.9,0.98882895]
[1747662229370,4.11421048,2430.6,2430.1,4.11503263]
[1747662229568,4.11422712,2430.6,2430.1,4.11497105]
[1747662229778,4.11421048,2430.6,2430.1,4.11497105]
[1747662230008,4.11458935,2430.4,2429.9,4.11531619]
[1747662230220,0.55,2430.6,2429.8,12.92235348]
[1747662230221,0.05143929,2430.3,2429.8,8.80681818]
[1747662230509,4.11494885,2430.2,2429.8,8.80681818]
[1747662230710,4.11539569,2429.9,2429.8,8.80681818]
[1747662230912,0.55,2430.1,2429.8,8.80681818]
[1747662231204,4.66539569,2429.9,2429.8,8.80681818]
[1747662231767,5.80699569,2429.9,2429.8,7.77476916]
[1747662231967,13.80699569,2429.9,2429.8,7.50143743]
[1747662232277,13.80699569,2429.9,2429.8,0.67851756]
[1747662232687,35.45799569,2429.9,2429.8,0.67851756]
[1747662233001,16.63799569,2429.9,2429.8,0.67851756]
[1747662233506,4.66624269,2429.4,2429.3,0.13431809]
[1747662233702,4.66675106,2429.1,2429.0,9.13395317]
[1747662233894,15.50075106,2429.1,2429.0,9.13395317]
[1747662234611,26.32175106,2429.1,2429.0,1e-08]
[1747662234899,4.11768853,2428.6,2428.2,9.46108815]
[1747662235820,4.11795439,2428.4,2428.2,9.46108815]
[1747662236017,4.11800043,2428.4,2428.2,9.46108815]
[1747662236178,4.66810731,2428.3,2428.2,9.46108815]
[1747662237026,5.80970731,2428.3,2428.1,0.05]
[1747662237178,5.80970731,2428.3,2427.4,9.78822314]
[1747662237179,4.66946446,2427.5,2427.4,9.78822314]
[1747662237373,4.11946446,2427.5,2427.4,9.78822314]
[1747662237915,4.66946446,2427.5,2427.4,9.78822314]
[1747662238428,5.81106446,2427.5,2427.4,9.78822314]
[1747662238612,0.55,2428.0,2427.4,10.76704545]
[1747662238926,0.55,2428.0,2427.4,13.90785701]
[1747662239212,1.1416,2428.2,2427.4,11.37242314]
[1747662239414,4.11878158,2428.0,2427.4,11.37242314]
[1747662239714,0.55,2427.9,2427.5,4.11945763]
[1747662240017,1.1416,2428.6,2427.4,11.37242314]
[1747662240222,6.33195298,2429.1,2427.7,1.5565]
[1747662240381,1.1416,2429.1,2428.6,4.11759857]
[1747662240583,14.95666973,2429.2,2428.7,4.11739591]
[1747662240805,14.95666973,2429.2,2428.8,4.11715845]
[1747662240806,10.84,2429.2,2428.8,4.11715845]
[1747662241005,4.11688474,2429.1,2428.5,1.5028]
[1747662241229,4.11771862,2428.6,2428.0,9.5028]
[1747662241437,0.55,2428.5,2428.1,4.11836866]
[1747662241631,4.66783213,2428.5,2428.0,5.62133429]
[1747662241858,0.55,2428.5,2428.0,1.5028]
[1747662242018,4.11752324,2428.7,2428.0,1.5028]
[1747662242212,4.11734185,2428.8,2428.2,4.1182004]
[1747662242444,18.12478266,2429.1,2428.0,1.5028]
[1747662242646,14.93941213,2429.3,2428.3,4.11810731]
[1747662242847,14.93941213,2429.3,2428.8,4.11714634]
[1747662243021,0.55,2428.9,2428.5,4.11768769]
[1747662243224,0.55,2428.9,2428.3,10.821]
[1747662243551,4.66718155,2428.9,2428.4,4.11790622]
[1747662244048,4.6669304,2429.0,2428.3,10.821]
[1747662244247,10.823,2429.3,2428.3,12.31494242]
[1747662244433,10.823,2429.8,2429.3,4.11637524]
[1747662244620,10.823,2429.8,2428.9,10.819]
[1747662244826,10.823,2429.8,2429.0,1.5013]
[1747662245013,10.823,2429.8,2429.3,4.11628025]
[1747662245209,0.05145116,2429.7,2429.0,1.5013]
[1747662245409,1.1416,2429.6,2428.6,5.61770926]
[1747662245651,0.55,2429.1,2428.6,5.61770926]
[1747662245854,0.55,2429.1,2428.7,4.11732821]
[1747662246025,4.66620187,2429.5,2428.9,4.1170537]
[1747662246349,0.55,2429.2,2428.6,5.61773555]
[1747662246550,0.55,2429.2,2428.6,1.5002]
[1747662246720,0.55,2429.5,2428.6,1.5002]
[1747662246919,4.16548579,2429.9,2428.6,1.5002]
[1747662246920,1.1916,2429.9,2429.5,4.11602605]
[1747662247446,5.30700782,2429.9,2429.4,4.11617012]
[1747662247658,4.11563993,2429.8,2429.3,4.11632177]
[1747662247822,0.55,2429.3,2428.9,4.11699721]
[1747662248147,4.11776816,2428.5,2428.2,1.6316]
[1747662248355,0.05147873,2428.4,2428.0,4.11848378]
[1747662248650,0.55,2428.1,2427.8,1.6316]
[1747662248855,4.66852547,2428.1,2427.6,4.11926659]
[1747662249062,0.60149065,2428.1,2427.4,11.33062314]
[1747662249210,4.11861614,2428.0,2427.4,9.78822314]
[1747662249410,0.55,2427.7,2427.4,9.78822314]
[1747662249663,0.60149594,2427.7,2427.4,9.78822314]
[1747662249823,0.55,2427.5,2427.4,9.78822314]
[1747662250223,4.66946446,2427.5,2427.4,9.78822314]
[1747662250424,0.55,2427.5,2427.4,9.78822314]
[1747662250749,4.11925781,2427.7,2427.4,9.78822314]
[1747662250957,0.55,2427.6,2427.4,9.78822314]
[1747662251150,1.1416,2428.2,2427.4,9.78822314]
[1747662251151,1.1416,2428.2,2427.4,12.70821765]
[1747662251315,11.9636,2428.7,2427.5,4.11946446]
[1747662251516,16.08112347,2428.7,2427.4,27.64976156]
[1747662251715,11.9636,2428.7,2427.5,4.11946446]
[1747662252020,10.822,2428.7,2428.3,4.11798733]
[1747662252223,0.05147335,2428.6,2427.7,1.6154]
[1747662252421,0.55,2428.4,2427.7,1.6154]
[1747662252623,0.55,2428.4,2428.0,4.11849076]
[1747662252922,0.55,2428.4,2427.8,4.11882285]
[1747662253240,0.55,2428.4,2428.1,4.11837358]
[1747662253623,10.822,2428.7,2427.9,4.11878578]
[1747662254157,5.25843593,2429.1,2428.0,14.93049773]
[1747662254358,4.11752114,2428.7,2428.2,4.11816744]
[1747662254560,0.05147181,2429.0,2427.7,1.6154]
[1747662254561,10.87547181,2429.0,2427.7,1.6154]
[1747662254722,0.55,2428.5,2427.7,3.65814]
[1747662254915,4.11812023,2428.3,2427.7,3.65814]
[1747662255120,0.55,2428.3,2427.7,5.73451472]
[1747662255320,4.66827094,2428.3,2427.8,4.11895543]
[1747662255671,9.99,2428.3,2427.8,4.118927]
[1747662255819,9.99,2428.3,2428.2,4.11827691]
[1747662256019,10.824,2428.4,2428.3,4.11810731]
[1747662256243,29.7416,2429.3,2428.5,4.11767022]
[1747662256438,4.11734025,2428.8,2428.3,4.11802582]
[1747662256672,4.11706531,2429.0,2428.5,4.11775314]
[1747662256877,4.11706531,2429.0,2428.0,1.5373]
[1747662256878,4.11767134,2428.6,2428.0,1.5373]
[1747662257178,0.55,2428.5,2428.2,4.11826758]
[1747662257379,0.55,2428.6,2428.2,4.11825147]
[1747662257578,1.6916,2428.6,2427.7,1.6266]
[1747662257739,1.6916,2428.6,2427.4,20.59722314]
[1747662257740,0.55,2427.9,2427.4,20.59722314]
[1747662257942,4.11870675,2428.0,2427.4,20.59722314]
[1747662257943,4.1179306,2428.5,2427.5,4.11946446]
[1747662258172,0.55,2428.4,2428.0,4.11859547]
[1747662258376,0.55,2428.5,2428.2,4.11815741]
[1747662258786,0.55,2428.5,2427.6,10.808]
[1747662258988,0.55,2428.2,2427.7,4.11910346]
[1747662259156,4.71980764,2428.2,2427.5,4.11933288]
[1747662259354,0.55,2428.1,2427.4,9.78822314]
[1747662259563,0.55,2427.8,2427.4,9.78822314]
[1747662259985,0.55,2427.9,2427.6,4.11928972]
[1747662260156,0.55,2427.9,2427.4,13.90779047]
[1747662260493,0.55,2427.7,2427.4,9.78822314]
[1747662260690,0.55,2427.5,2427.4,9.78822314]
[1747662260866,4.1193079,2427.6,2427.4,9.78822314]
[1747662261073,0.55,2427.5,2427.4,9.78822314]
[1747662261383,10.54,2427.9,2427.4,9.78822314]
[1747662261585,10.54,2427.9,2427.7,4.11904772]
[1747662261780,1.1416,2428.2,2427.4,9.78822314]
[1747662262091,21.89820332,2428.3,2427.8,4.11893581]
[1747662262256,0.55,2428.2,2427.6,4.11922766]
[1747662262456,0.55,2428.2,2427.8,4.11890731]
[1747662262799,21.633,2428.5,2427.6,0.04119082]
[1747662262959,4.42268325,2429.5,2428.0,4.11861614]
[1747662262960,10.826,2429.3,2428.0,4.11861614]
[1747662263291,10.826,2429.3,2428.5,4.11765049]
[1747662263490,10.826,2429.3,2428.3,10.805]
[1747662263989,4.11675106,2429.1,2427.9,1.6113]
[1747662264162,0.55,2428.6,2428.2,4.11813248]
[1747662264594,0.55,2428.9,2428.4,4.11792637]
[1747662264768,4.11728637,2428.8,2428.3,4.11799192]
[1747662264974,4.66790146,2428.5,2428.0,4.11858704]
[1747662265292,4.66818068,2428.3,2427.7,10.804]
[1747662265471,0.55,2428.1,2427.5,1.5512]
[1747662265664,4.66851409,2428.1,2427.6,4.11918661]
[1747662266062,1.1930892,2428.0,2427.4,9.78822314]
[1747662266288,0.55,2427.9,2427.7,4.11900187]
[1747662266689,4.11801132,2428.4,2427.9,4.11868398]
[1747662266690,4.66795582,2428.4,2427.9,4.11868398]
[1747662266893,4.66802401,2428.4,2427.9,4.11874905]
[1747662267078,4.11812096,2428.3,2427.8,4.11887944]
[1747662267476,0.55,2428.4,2427.4,17.78822314]
[1747662267681,0.55,2428.4,2428.0,4.11860667]
[1747662267881,0.55,2428.4,2428.1,4.118408]